Cogmind - Beta 13 @@@ ROGUE MODE // 2024.05.12 @ 03:24:00 // Winter2019/RPGLIKE Player: boggy Result: Destroyed by G-47 Trooper with Particle Gun Performance ------------- Evolutions (3) 1500 Regions Visited (7) 1400 Robots Destroyed (222) 1110 Value Destroyed (5599) 5599 Prototype IDs (28) 560 Alien Tech Used (0) 0 Bonus (1490) 1490 TOTAL SCORE: 11659 Bonus ------- High Alert Combat Kills 1110 Follower Combat Kills 136 Aligned with FarCom 300 Friendly Fire -56 Cogmind --------- Core Integrity 0/1450 Matter 32/300 Energy 8/470 System Corruption 14% Temperature Danger (413) Movement Rolling (110) Ox2 Location -7/Factory Parts ------- > --- POWER (2) -------- Heavy Ion Engine Improved Deuterium Engine > --- PROPULSION (3) --- Wheel Wheel > --- UTILITY (5) ------ Advanced Targeting Computer Medium Reactive Plating Improved Shield Generator Hacking Suite > --- WEAPON (4) ------- Advanced Beam Cannon Advanced Beam Cannon Advanced Beam Cannon Advanced Assault Cannon > --- INVENTORY (0) ---- (None) Peak State ------------ > --- POWER ------------ Heavy Ion Engine Improved Deuterium Engine > --- PROPULSION ------- Wheel Wheel Wheel > --- UTILITY ---------- Seismic Detector Advanced Targeting Computer Transmission Jammer Improved Shield Generator Supersonic Drone Bay > --- WEAPON ----------- Advanced Beam Cannon Advanced Beam Cannon Advanced Beam Cannon Advanced Assault Cannon > --- INVENTORY -------- (None) [Rating: 43] Favorites ----------- Power Ion Engine Engine Ion Engine Propulsion Wheel Leg Potential Leg Wheel Wheel Utility Seismic Detector Device Seismic Detector Processor Advanced Targeting Computer Hackware Hacking Suite Protection Light Armor Plating Weapon Beam Cannon Energy Gun Medium Laser Energy Cannon Beam Cannon Ballistic Gun Enhanced Autogun Ballistic Cannon Advanced Assault Cannon Launcher Rocket Launcher Build | -11 -10 -10 -10 -9 -8 -8 -7 ------- Run | Yrd Mat Min Exi Min Mat Sto Fac Slots Evolved 10 | 4 . 3 . . 1 . 2 Power 1 | . . . . . . . 1 Propulsion 2 | 1 . . . . . . 1 Utility 4 | 2 . 1 . . 1 . . Weapon 3 | 1 . 2 . . . . . Parts Attached 64 | 9 6 2 8 1 6 10 22 Power 8 | 1 1 . . . 1 2 3 Engine 8 | 1 1 . . . 1 2 3 Core . | . . . . . . . . Reactor . | . . . . . . . . Propulsion 14 | 2 . 1 6 . . 2 3 Treads . | . . . . . . . . Leg 4 | . . . 4 . . . . Wheel 10 | 2 . 1 2 . . 2 3 Hover . | . . . . . . . . Flight . | . . . . . . . . Utility 16 | 2 . . 2 . 2 3 7 Device 8 | 2 . . 2 . . . 4 Storage . | . . . . . . . . Processor 1 | . . . . . . 1 . Hackware 1 | . . . . . . . 1 Protection 6 | . . . . . 2 2 2 Artifact . | . . . . . . . . Weapon 26 | 4 5 1 . 1 3 3 9 Energy Gun 6 | 4 1 . . . 1 . . Energy Cannon 14 | . 3 . . 1 . 3 7 Ballistic Gun 1 | . . . . . 1 . . Ballistic Cannon 1 | . . . . . . . 1 Launcher 4 | . 1 1 . . 1 . 1 Special Weapon . | . . . . . . . . Impact Weapon . | . . . . . . . . Slashing Weapon . | . . . . . . . . Piercing Weapon . | . . . . . . . . Special Melee Weapon . | . . . . . . . . Unidentified Prototypes 8 | . . . 3 . 2 3 . Parts Lost 7 | . 1 . . . . 3 3 Power 1 | . 1 . . . . . . Propulsion 4 | . . . . . . 2 2 Utility 1 | . . . . . . . 1 Weapon 1 | . . . . . . 1 . Highest Loss Streak 2 | . 1 . . . . 2 1 To Critical Strikes . | . . . . . . . . Average Slot Usage (%) 85 | . 83 74 74 89 91 91 88 Engine 8 | . 8 9 9 9 8 8 10 Wheel 19 | . 25 20 17 18 17 10 19 Device 21 | . 25 20 20 27 26 20 16 Processor 2 | . . . . . . 3 7 Protection 4 | . . . . . 4 15 6 Energy Gun 1 | . 4 . . . . . . Energy Cannon 22 | . 19 20 18 26 26 29 21 Ballistic Cannon 1 | . . . . . . . 6 Launcher 1 | . . 3 9 9 8 1 . Naked Turns . | . . . . . . . . Heaviest Build 62 | 10 13 17 18 22 30 34 62 Greatest Support 40 | 20 20 20 30 20 30 30 40 Greatest Overweight (x) 5 | 1 . . 5 1 1 2 2 Average Overweight (x) . | . . . . . . 1 . Largest Inventory Capacity . | . . . . . . . . Average Capacity . | . . . . . . . . Most Carried . | . . . . . . . . Average Carried . | . . . . . . . . Final Capacity . | . . . . . . . . Final Carried . | . . . . . . . . Class Distribution -------------------- 41% | Mutant 25% | Hacker-Gunner 12% | Scavenger-Tank 9% | Gunner 6% | Skirmisher 3% | Hacker-Tank Dominant Class ---------------- Mutant | -10/Materials Mutant | -10/Mines Gunner | -10/Exiles Skirmisher | -9/Mines Skirmisher | -8/Materials Scavenger-Tank | -8/Storage Hacker-Gunner | -7/Factory Resources | -11 -10 -10 -10 -9 -8 -8 -7 ----------- Run | Yrd Mat Min Exi Min Mat Sto Fac Matter Collected 1694 | 201 236 42 . 105 116 192 802 Remotely . | . . . . . . . . Salvage Created 8353 | 167 2863 524 . 142 226 2517 1914 Parts 519 | 18 195 35 . 14 18 120 119 Haulers Intercepted 6 | . 2 . . . . 3 1 Recyclers Shooed 5 | . 4 . . . . 1 . Parts Field Recycled . | . . . . . . . . Retrieved Matter . | . . . . . . . . Parts Self-Destructed . | . . . . . . . . Prevented . | . . . . . . . . Kills | -11 -10 -10 -10 -9 -8 -8 -7 ------- Run | Yrd Mat Min Exi Min Mat Sto Fac Combat Hostiles Destroyed 121 | . 15 18 . 4 9 36 39 Guns 11 | . 11 . . . . . . Cannons 100 | . 4 16 . 4 6 32 38 AOE 8 | . . 2 . . 3 3 . Classes Destroyed 20 | 2 7 2 . . 2 . 7 Worker 53 | . 47 1 . . . 3 2 Builder 30 | . 11 1 . 1 . 8 9 Tunneler 10 | 5 3 2 . . . . . Hauler 6 | . 2 . . . . 3 1 Recycler 25 | 1 14 1 . 1 . 7 1 Mechanic 1 | . . . . . . . 1 Operator 4 | . 2 . . . . 2 . Watcher 5 | . 1 . . . . 2 2 Swarmer 24 | . 3 6 . 4 4 7 . Cutter 12 | . . . . . . . 12 Grunt 60 | . 12 6 . . 4 24 14 Duelist 1 | . . . . . . . 1 Sentry 9 | . . . . . 1 5 3 Demolisher 2 | . . 2 . . . . . Specialist 2 | . . . . . . . 2 Hunter 1 | . . . . . . . 1 Programmer 4 | . . . . . . . 4 Heavy 2 | . . . . . . . 2 Zionite 1 | . . . . . 1 . . Assembled 4 | . . 4 . . . . . Best Kill Streak 9 | 6 5 5 . 4 5 9 6 Combat Bots Only 7 | . 3 5 . 4 5 7 5 Max Kills in Single Turn 4 | 1 2 2 . 2 3 2 4 Gunslinging . | . . . . . . . . Exploded 3 | . . 1 . . 3 1 . Melee . | . . . . . . . . Uniques/NPCs Destroyed . | . . . . . . . . Combat | -11 -10 -10 -10 -9 -8 -8 -7 -------- Run | Yrd Mat Min Exi Min Mat Sto Fac Hostile Shots Fired 530 | . 78 79 . 10 21 111 231 Missed 159 | . 23 17 . 1 7 46 65 Damage Taken 5250 | . 647 965 . 60 188 763 2627 Core 3927 | . 534 779 . 46 140 488 1940 Absorbed by Shields 363 | . . . . . . . 363 Redirected to Core 3219 | . 334 613 . 40 128 423 1681 Ignored by Resistances 638 | . 14 34 . 9 23 129 429 Regen/Repaired (Parts) 99 | . . . . . . 99 . Core Remaining (%) 72 | 100 . . . 23 . 93 . Volleys Fired 575 | 12 244 55 . 9 18 96 141 Largest 4 | 2 2 3 . 3 4 4 4 Hottest 272 | 90 120 153 . 188 221 272 272 Shots Fired 1578 | 24 489 105 . 27 60 339 534 Gun 139 | 24 115 . . . . . . Cannon 1422 | . 370 103 . 27 54 335 533 Launcher 17 | . 4 2 . . 6 4 1 Special . | . . . . . . . . Kinetic 129 | . . . . . . . 129 Thermal 1432 | 24 485 103 . 27 54 335 404 Explosive 17 | . 4 2 . . 6 4 1 Electromagnetic . | . . . . . . . . Robot Hit Streak 29 | 10 19 10 . 7 5 28 29 Robot Miss Streak 5 | 3 3 5 . 1 3 2 2 Penetration Max . | . . . . . . . . Secondary Targets 2 | . 2 . . . . . . Max Gunslinging Chain 1 | . 1 . . . . . . Shots Hit Robots 693 | 14 204 52 . 10 23 179 211 Core Hits 338 | 7 102 31 . 6 18 90 84 Critical Kills 2 | . . . . . . 1 1 Critical Parts Destroyed . | . . . . . . . . Critical Strikes 12 | 3 6 . . . . 1 2 Burn 9 | 3 6 . . . . . . Meltdown 2 | . . . . . . 1 1 Blast 1 | . . . . . . . 1 Melee Attacks . | . . . . . . . . Impact . | . . . . . . . . Slashing . | . . . . . . . . Piercing . | . . . . . . . . Sneak Attacks . | . . . . . . . . Combat Hostiles . | . . . . . . . . Follow-up Attacks . | . . . . . . . . Damage Inflicted 15225 | 165 3444 1061 . 223 720 4008 5604 Guns 808 | 165 643 . . . . . . Cannons 13180 | . 2568 915 . 223 517 3751 5206 Explosions 1224 | . 233 146 . . 197 250 398 Melee . | . . . . . . . . Ramming 13 | . . . . . 6 7 . Kinetic 1077 | . . . . . . . 1077 Thermal 13432 | 165 3406 924 . 223 517 3751 4446 Explosive 659 | . 38 137 . . 197 250 37 Electromagnetic 34 | . . . . . . . 34 Impact 10 | . . . . . . . 10 Slashing . | . . . . . . . . Piercing . | . . . . . . . . Highest Corruption 14 | . 2 2 2 2 . 2 14 Average Corruption 3 | . 1 2 2 2 . 1 11 Corruption Purged . | . . . . . . . . Corruption Blocked . | . . . . . . . . Effects 107 | . 21 5 6 3 . 6 66 Message Errors 31 | . 3 2 2 2 . 3 19 Matter Fused 21 | . 6 . 2 . . 1 12 Heat Flow Errors 6 | . 3 . 1 . . . 2 Energy Discharges 13 | . 4 2 1 1 . . 5 Parts Rejected 2 | . . 1 . . . . 1 Parts Fused 2 | . 1 . . . . 1 . Data Loss (minor) 8 | . 1 . . . . 1 6 Data Loss (major) 6 | . 1 . . . . . 5 Misfires 4 | . 2 . . . . . 2 Alerts 2 | . . . . . . . 2 Weapon Failures 12 | . . . . . . . 12 Overload Shots . | . . . . . . . . Overflow Damage 236 | . 77 27 . 1 . 27 104 Projectiles 131 | . 32 27 . 1 . 27 44 Explosions 105 | . 45 . . . . . 60 Melee . | . . . . . . . . Knockbacks 8 | . . . . . . . 8 Impact . | . . . . . . . . Kinetic 7 | . . . . . . . 7 Secondary 1 | . . . . . . . 1 Self-Inflicted Damage 312 | . 105 . . . 3 3 201 Shots 6 | . 3 . . . . . 3 Rammed 3 | . . . . . 1 2 . Targets Rammed 3 | . . . . . 1 2 . Kicked . | . . . . . . . . Crushed . | . . . . . . . . Highest Temperature 533 | 48 168 308 235 328 533 263 404 Average Temperature 66 | 17 40 87 123 107 199 69 86 Received Heat Transfer 1334 | . 246 166 . . 72 261 589 Effects 16 | . . 7 . . 3 3 3 Shutdowns 2 | . . . . . 1 . 1 Interference 11 | . . 7 . . . 3 1 Matter Decay 1 | . . . . . 1 . . Short Circuit 1 | . . . . . . . 1 Damage (minor) 1 | . . . . . 1 . . Siege Activations . | . . . . . . . . Robots Corrupted . | . . . . . . . . Combat Hostiles . | . . . . . . . . Parts Fried . | . . . . . . . . Impact Corruptions . | . . . . . . . . Robots Melted 2 | . . . . . . 1 1 Combat Hostiles 2 | . . . . . . 1 1 Parts Melted 46 | . 11 1 . . 1 21 12 Heat Transferred 25559 | 668 7745 2011 . 444 1036 7104 6551 Parts Sabotaged . | . . . . . . . . Parts Stolen . | . . . . . . . . Parts Stripped . | . . . . . . . . Power Chain Reactions 1 | . 1 . . . . . . Alert | -11 -10 -10 -10 -9 -8 -8 -7 ------- Run | Yrd Mat Min Exi Min Mat Sto Fac Peak Influence 1557 | 30 580 540 . 160 492 830 1557 Initial 212 | . 19 212 . . 62 207 36 Average 415 | 8 304 422 . 122 283 403 693 Maximum Alert Level 4 | . 2 2 . . 2 3 4 Low Security (%) 29 | 100 37 . . 100 34 20 16 Level 1 23 | . 26 25 . . 36 25 19 Level 2 34 | . 35 74 . . 29 44 19 Level 3 6 | . . . . . . 9 18 Level 4 6 | . . . . . . . 25 Level 5 . | . . . . . . . . High Security . | . . . . . . . . Max Security . | . . . . . . . . Squads Dispatched 33 | . 7 . . . . 8 18 Investigation 14 | . 6 . . . . 6 2 Extermination 3 | . . . . . . . 3 Reinforcement 12 | . 1 . . . . 2 9 Assault 2 | . . . . . . . 2 Garrison 2 | . . . . . . . 2 Intercept . | . . . . . . . . Searches Triggered . | . . . . . . . . Construction Impeded 1 | . . . . . . 1 . Haulers Reinforced 1 | . . . . . . . 1 Active Scanning Responses . | . . . . . . . . Cargo Convoy Interrupts 1 | . . . . . . . 1 Stealth | -11 -10 -10 -10 -9 -8 -8 -7 --------- Run | Yrd Mat Min Exi Min Mat Sto Fac Distress Signals 2 | . . . . . . 2 . Communications Jammed . | . . . . . . . . Distress Signals . | . . . . . . . . Times Spotted 155 | . 18 24 . 4 12 40 57 Peak Tracking Total 10 | . 3 10 . 4 4 6 10 Tactical Retreats 5 | . . 1 . . . . 4 Traps | -11 -10 -10 -10 -9 -8 -8 -7 ------- Run | Yrd Mat Min Exi Min Mat Sto Fac Traps Triggered 13 | . . . . . . 6 7 Indirectly . | . . . . . . . . Trap Hack Attempts . | . . . . . . . . Triggered . | . . . . . . . . Disarmed . | . . . . . . . . Reprogrammed 1 | . 1 . . . . . . Reused . | . . . . . . . . Traps Extracted . | . . . . . . . . Installed . | . . . . . . . . Triggered 5 | . . . . . . . 5 Machines | -11 -10 -10 -10 -9 -8 -8 -7 ---------- Run | Yrd Mat Min Exi Min Mat Sto Fac Machines Disabled 94 | . 28 1 . 3 2 8 52 Max in Single Turn 11 | . 5 1 . 2 1 2 11 Garrison Access 2 | . . . . . . . 2 Machines Repaired . | . . . . . . . . Machines Dismantled . | . . . . . . . . Machines Sabotaged . | . . . . . . . . Overloaded Fab Kills . | . . . . . . . . Hacking | -11 -10 -10 -10 -9 -8 -8 -7 --------- Run | Yrd Mat Min Exi Min Mat Sto Fac Machines Accessed 31 | . 9 . 5 . 1 10 6 Terminals 21 | . 7 . . . 1 9 4 Fabricators . | . . . . . . . . Repair Stations 3 | . 1 . . . . 1 1 Recycling Units 1 | . 1 . . . . . . Scanalyzers . | . . . . . . . . Garrison Access 1 | . . . . . . . 1 Total Hacks 146 | . 37 . 50 . 1 40 18 Successful 108 | . 19 . 50 . 1 29 9 Failed 38 | . 18 . . . . 11 9 Catastrophic 9 | . 4 . . . . 4 1 Database Lockouts . | . . . . . . . . Manual 4 | . . . 3 . . 1 . Terminals 78 | . 26 . . . 1 37 14 Fabricators . | . . . . . . . . Repair Stations 12 | . 6 . . . . 3 3 Recycling Units 5 | . 5 . . . . . . Scanalyzers . | . . . . . . . . Garrison Access 1 | . . . . . . . 1 Terminal Hacks 99 | . 14 . 50 . 1 27 7 Record 59 | . 3 . 49 . . 7 . Part Schematic 5 | . . . . . . 3 2 Robot Schematic 2 | . . . . . . 2 . Robot Analysis 1 | . 1 . . . . . . Open Door 2 | . . . . . . 2 . Open DSF 2 | . . . . . . . 2 Branch Access Points 1 | . 1 . . . . . . Unreport Threat 10 | . 3 . . . . 6 1 Locate Traps 3 | . 2 . . . . 1 . Reprogram Traps 1 | . 1 . . . . . . Dispatch Records 1 | . . . . . . 1 . Maintenance Status 1 | . . . . . . . 1 Investigation Status 1 | . . . . . . 1 . Reinforcement Status 2 | . 1 . . . . 1 . Recall Investigation 1 | . . . . . . 1 . Recall Reinforcements 1 | . . . . . . 1 . Registered Components 2 | . . . . . . 1 1 Registered Prototypes 1 | . 1 . . . . . . Zone Layout 2 | . 1 . . . 1 . . Derelict Proto ID Bank 1 | . . . 1 . . . . Fabricator Hacks . | . . . . . . . . Repair Station Hacks 5 | . 2 . . . . 2 1 Scan Component 2 | . . . . . . 1 1 Repair 1 | . . . . . . 1 . Refit 2 | . 2 . . . . . . Recycling Unit Hacks 3 | . 3 . . . . . . Retrieve Components 3 | . 3 . . . . . . Scanalyzer . | . . . . . . . . Garrison Access Hacks 1 | . . . . . . . 1 Seal Access 1 | . . . . . . . 1 Unauthorized Hacks . | . . . . . . . . Terminals . | . . . . . . . . Fabricators . | . . . . . . . . Repair Stations . | . . . . . . . . Recycling Units . | . . . . . . . . Scanalyzers . | . . . . . . . . Garrison Access . | . . . . . . . . Data Cores Recovered 1 | . . . . . . 1 . Used . | . . . . . . . . Hacking Detections 23 | . 9 . . . . 10 4 Full Trace Events 15 | . 9 . . . . 5 1 Feedback Events 2 | . 1 . . . . . 1 Corruption 2 | . 1 . . . . . 1 Feedback Blocked . | . . . . . . . . Robot Schematics Acquired 2 | . . . . . . 2 . Robots Built . | . . . . . . . . Authchips . | . . . . . . . . Time . | . . . . . . . . Total Robot Build Rating . | . . . . . . . . Part Schematics Acquired 5 | . . . . . . 3 2 Parts Built . | . . . . . . . . Authchips . | . . . . . . . . Time . | . . . . . . . . Total Part Build Rating . | . . . . . . . . Parts Repaired 1 | . . . . . . 1 . Time 16 | . . . . . . 16 . Parts Recycled . | . . . . . . . . Recycled Matter . | . . . . . . . . Retrieved Matter . | . . . . . . . . Retrieved Components 2 | . 2 . . . . . . Parts Scanalyzed . | . . . . . . . . Part Schematics Acquired . | . . . . . . . . Parts Damaged . | . . . . . . . . Bothacking | -11 -10 -10 -10 -9 -8 -8 -7 ------------ Run | Yrd Mat Min Exi Min Mat Sto Fac Used RIF Installer . | . . . . . . . . Robots Hacked . | . . . . . . . . Non-combat . | . . . . . . . . Combat . | . . . . . . . . Robot Hacks Applied . | . . . . . . . . Relay Couplers Released 1 | . . . . . . . 1 Machine Destruction 1 | . . . . . . . 1 Fabnet Peak Effective % . | . . . . . . . . Robots Rewired . | . . . . . . . . Allies Hacked . | . . . . . . . . Hacks Repelled . | . . . . . . . . Allies | -11 -10 -10 -10 -9 -8 -8 -7 -------- Run | Yrd Mat Min Exi Min Mat Sto Fac Total Allies 2 | . . . . 2 . . . Largest Group 2 | . . . . 2 2 1 . Highest-Rated Group 50 | . . . . 50 50 31 . Highest-Rated Ally 31 | . . . . 31 31 31 . Total Orders . | . . . . . . . . Ally Attacks 21 | . . . . . 20 1 . Total Damage 256 | . . . . . 235 21 . Kills 4 | . . . . . 4 . . Allies Corrupted . | . . . . . . . . Allies Melted . | . . . . . . . . Intel | -11 -10 -10 -10 -9 -8 -8 -7 ------- Run | Yrd Mat Min Exi Min Mat Sto Fac Robot Analysis Total 1 | . 1 . . . . . . Derelict Logs Recovered 2 | . . 1 . 1 . . . Drone Launches 1 | . . . . . . 1 . Drone Recoveries . | . . . . . . . . Exploration | -11 -10 -10 -10 -9 -8 -8 -7 ------------- Run | Yrd Mat Min Exi Min Mat Sto Fac Turns Passed 8028 | 90 2817 679 497 346 238 1578 1783 Spaces Moved 6846 | 51 2554 636 593 335 180 1129 1368 Core 164 | 7 . . 3 . . 154 . Treads . | . . . . . . . . Legs 2 | . . . 2 . . . . Wheels 6680 | 44 2554 636 588 335 180 975 1368 Hover . | . . . . . . . . Flight . | . . . . . . . . Fastest Speed 50 | 50 80 80 80 80 80 80 80 Average Speed 85 | 77 80 80 81 93 86 102 86 Slowest Speed 300 | 100 80 80 300 95 95 150 110 Overloaded Moves . | . . . . . . . . Propulsion Burnouts . | . . . . . . . . Robots Hopped . | . . . . . . . . Cave-ins Triggered . | . . . . . . . . Exploration Rate (%) 58 | 4 97 82 94 55 16 94 26 Regions Visited 7 Branch Regions 4 Pre-discovered Areas 2 | . . 1 1 . . . . Known Exits Taken 2 | . 1 . . . 1 . . Unknown Exits Taken 5 | 1 . 1 1 1 . 1 . Scrap Searched 2 | . . 1 . 1 . . . Spaces Dug 1 | . . . . . . . 1 Terrain Destroyed 645 | . 124 35 . 19 66 44 357 Melee . | . . . . . . . . Projectile 14 | . . . . . . . 14 AOE 631 | . 124 35 . 19 66 44 343 Terrain Rammed . | . . . . . . . . Walls Destroyed . | . . . . . . . . Machines Disabled . | . . . . . . . . Actions | -11 -10 -10 -10 -9 -8 -8 -7 --------- Run | Yrd Mat Min Exi Min Mat Sto Fac Total 7726 | 73 2841 701 607 346 219 1322 1617 Wait 59 | . . . . 1 . 31 27 Move 6839 | 50 2553 635 592 334 179 1128 1368 Hop . | . . . . . . . . Pick Up . | . . . . . . . . Fast Attach 62 | 9 6 2 8 1 6 8 22 Attach . | . . . . . . . . Detach 1 | . 1 . . . . . . Swap 2 | . . . . . . 2 . Drop 34 | 2 6 . 7 . 4 6 9 Fire 575 | 12 244 55 . 9 18 96 141 Melee . | . . . . . . . . Ram 3 | . . . . . 1 2 . Kick . | . . . . . . . . Crush . | . . . . . . . . Escape Stasis 24 | . . . . . . . 24 Rewire . | . . . . . . . . Trap . | . . . . . . . . Miscellaneous 127 | . 31 9 . 1 11 49 26 Route ------- -11/Scrapyard -10/Materials (discovered 5 exits: [*Mat x3] / *Min x2) -10/Mines (discovered 3 exits: [*Mat x2] / *Exi) -10/Exiles (discovered 2 exits: [*Min x2]) -9/Mines (discovered 2 exits: *Mat x2) -8/Materials (discovered 2 exits: *Sto x2) -8/Storage -7/Factory (discovered 2 exits: [*Fac] / [*Low]) History --------- Turn | Location | Event 2 | -11/Scrapyard | Upgraded with Propulsion slot (x1) 2 | -11/Scrapyard | Upgraded with Utility slot (x2) 2 | -11/Scrapyard | Upgraded with Weapon slot (x1) 18 | -11/Scrapyard | Discovered new exit (range 16) 91 | -11/Scrapyard | Entered Materials 198 | -10/Materials | Discovered new exit (range 16) 301 | -10/Materials | Build established: Mutant 443 | -10/Materials | Discovered new exit (range 7) 494 | -10/Materials | Discovered new exit (range 14) 598 | -10/Materials | Identified exit to Mines 598 | -10/Materials | Reached level 2 627 | -10/Materials | Discovered new exit (range 16) 1318 | -10/Materials | Reached level 3 2908 | -10/Materials | Entered Mines 2910 | -10/Mines | Reached level 4 3086 | -10/Mines | Reached level 5 3128 | -10/Mines | Upgraded with Utility slot (x1) 3128 | -10/Mines | Upgraded with Weapon slot (x2) 3160 | -10/Mines | Assembled infested the area 3171 | -10/Mines | Learned location of Storage (-8) 3205 | -10/Mines | Core integrity fell below 50% 3218 | -10/Mines | Core integrity fell below 20% 3314 | -10/Mines | Received a Rocket Launcher from a helpful Derelict 3315 | -10/Mines | Discovered new exit (range 9) 3394 | -10/Mines | Discovered new exit (range 11) 3584 | -10/Mines | Deemed a non-threat by the Exiles lab entrance 3584 | -10/Mines | Discovered new exit (range 5) 3587 | -10/Mines | Entered Exiles 3602 | -10/Exiles | Build established: Gunner 3612 | -10/Exiles | Discovered new exit (range 15) 3650 | -10/Exiles | Met 8R-AWN 3662 | -10/Exiles | Met EX-HEX 3703 | -10/Exiles | Met EX-DEC 3720 | -10/Exiles | Visited The Gauntlet 3822 | -10/Exiles | Learned location of Zion (-7) 3864 | -10/Exiles | Met EX-BIN 3878 | -10/Exiles | Aligned with FarCom system 3879 | -10/Exiles | Given EX-Vault access code 3940 | -10/Exiles | Opened EX-Vault 3944 | -10/Exiles | Found Prototype Device 3944 | -10/Exiles | Identified Supersonic Drone Bay 3949 | -10/Exiles | Found Prototype Device 3949 | -10/Exiles | Identified PSU Rigger 3954 | -10/Exiles | Found Prototype Leg 3954 | -10/Exiles | Identified Potential Leg 3956 | -10/Exiles | Found Potential Leg 3998 | -10/Exiles | Warned to stay clear of 0b10 Research branches 4073 | -10/Exiles | Discovered new exit (range 14) 4084 | -10/Exiles | Left Exiles lab with Supersonic Drone Bay 4084 | -10/Exiles | Entered Mines 4136 | -9/Mines | Reached level 6 4181 | -9/Mines | Discovered new exit (range 6) 4350 | -9/Mines | Learned 2 Materials zone layouts 4373 | -9/Mines | Discovered new exit (range 14) 4377 | -9/Mines | Build established: Skirmisher 4430 | -9/Mines | Entered Materials 4430 | -8/Materials | Accompanied by 2 allies 4431 | -8/Materials | Identified exit to Storage 4431 | -8/Materials | Core integrity fell below 50% 4432 | -8/Materials | Reached level 7 4435 | -8/Materials | Led the pair of lost Derelicts to an unsafe place 4471 | -8/Materials | Core integrity fell below 20% 4553 | -8/Materials | Reached level 8 4572 | -8/Materials | Upgraded with Utility slot (x1) 4659 | -8/Materials | Discovered exit to Storage (range 8) 4668 | -8/Materials | Entered Storage 4668 | -8/Storage | Accompanied by 1 ally 4670 | -8/Storage | Reached level 9 4754 | -8/Storage | Destroyed 7 combat bots 4825 | -8/Storage | Reached level 10 4913 | -8/Storage | Build established: Scavenger-Tank 5578 | -8/Storage | Reached level 11 5807 | -8/Storage | Repaired Hrd. Light Armor Plating 5834 | -8/Storage | Discovered new exit (range 15) 5906 | -8/Storage | Reached level 12 6246 | -8/Storage | Entered Factory 6248 | -7/Factory | Reached level 13 6249 | -7/Factory | Upgraded with Power slot (x1) 6249 | -7/Factory | Upgraded with Propulsion slot (x1) 6252 | -7/Factory | Identified exit to DSF 6265 | -7/Factory | Build established: Hacker-Gunner 6558 | -7/Factory | Reached level 14 6840 | -7/Factory | System corruption reached 10% 6849 | -7/Factory | Core integrity fell below 50% 6914 | -7/Factory | Core integrity fell below 20% 6973 | -7/Factory | Reached level 15 7374 | -7/Factory | Discovered new exit (range 4) 7421 | -7/Factory | Discovered new exit (range 12) 7579 | -7/Factory | Reached level 16 7580 | -7/Factory | Cargo convoy interrupted 7877 | -7/Factory | First assault squad dispatched 7929 | -7/Factory | Garrison activated, responded to threat 8029 | -7/Factory | Destroyed by G-47 Trooper with Particle Gun Last Messages --------------- 08006_ G-47 Trooper destroyed. 08012_ Overheating: System interference. 08012_ Adv. Beam Cannon temporarily disabled. 08013_ G-47 Trooper knocked back. 08015_ Y VNJLY:MAJZ1IRS >STP7L0&>SA 08016_ G-47 Trooper destroyed. 08018_ M-28 Smith repairs G-47 Trooper. 08019_ Power failure, Imp. Deuterium Engine shutdown. 08019_ Critical hit (Burn: +26). 08020_ Critical hit (Burn: +25). 08020_ M-28 Smith repairs Lgt. Nuclear Core. 08023_ Wheel broken. 08023_ Overheating: Short circuit. 08024_ H-61 Shepherd calls for reinforcements. 08024_ ALERT: Hostile activity reported, dispatching reinforcements to area. 08027_ G-47 Trooper heat short circuits Aluminum Leg. 08027_ Critical hit (Burn: +26). 08028_ Knocked back. 08029_ Acquired 2 matter. Map ----- +----------------------------------------------------+ | ?????????????????????????????????? | | ?????????????????????????????????? | | ?????????????????????????????????? | | ?????????????????????????????????? | | ?????????????????????????????????? | | ?????????????????????????????????? | | ?????????????????????????????????? | | ?????????????????????????????????? | | ?????????????????????????????????? | | ?????????????????????????????????? | | ?????????????????????????????????? | | ?????????????????????????????????? | | ?????????????????????????????????? | | ??????????#########??????????????? | | ??????????# #??????????????? | | ??????????# #??????????????? | | ??????????# #?????"????#???? | | ???????#### #???? "????# ??? | | ???????# #; ##?? "????# ??? | | ???????? ## "????# ??? | | ???????## ; ""???# ??? | | ?????### ; ""???# #?? | | ???###;#; # ????# "?? | | ???# ;######### "## | | ???# ??#; % | | ???# ### @ m=g g % | | #####;;; gggg H [%! | | # *; =%% g % = | | # ;;[g%% # g Y | | # = ;;=%""" #??" "" = | | # ;;!!! #??"G"" % | | # ;%##+################# # | | # % ! !*%% | | # %%! | | # !! | | # | | # ! | | # % | | # | | # ;#### | | " ##??# """" """" | | " ##??# """" """" | | " #??# """" """" | | " "#### """" """" | | " """" """" "F"" | | #""" """""### ""?" """" """" | | # " " #?? ?? ?? | | #### ######?# ?? ? | | ???# #??????# ######??#+#?### ??? | | ???# ######## #?????????????? ??? | +----------------------------------------------------+ Best States ------------- Heat Dissipation 79 Energy Generation 30 Energy Capacity 470 Matter Stores 300 Matter Capacity 300 Sight Range 17 Robot Scan Range 12 Terrain Scan Range 16 Terrain Scan Density 310 Jamming Range 12 Armor Coverage 600 Resistance: KI 30 Resistance: TH 10 Evasion (%) 44 Targeting Accuracy 8 Offensive Hacking 40 Defensive Hacking 15 Item Schematics ----------------- Energy Well | -8/Storage | Hacked Hvy. Plasma Cannon | -8/Storage | Hacked Power Amplifier | -8/Storage | Hacked Lgt. Angular Momentum Engine | -7/Factory | Hacked Fusion Compressor | -7/Factory | Hacked Robot Schematics ------------------ R-06 Scavenger | -8/Storage | Hacked H-55 Commando | -8/Storage | Hacked Fabricated ------------ Nothing Alien Tech Used ----------------- None Achievements -------------- None Challenges ------------ None RPGLIKE | -11 -10 -10 -10 -9 -8 -8 -7 --------- Run | Yrd Mat Min Exi Min Mat Sto Fac Levels Raised 15 | . 2 2 . 1 2 4 4 XP Earned 26409 | 3000 4213 2147 243 1175 3371 5546 6714 XP Spent 25500 | 2900 2730 3000 . 1500 3150 6125 6095 Upgrades 72 | 7 9 3 . 6 10 10 27 Power Slot 1 | . . . . . . . 1 Propulsion Slot 2 | 1 . . . . . . 1 Utility Slot 4 | 2 . 1 . . 1 . . Weapon Slot 3 | 1 . 2 . . . . . Core Integrity 17 | . 2 . . 2 . . 13 Heat Dissipation 9 | 1 1 . . . 7 . . Energy Generation 1 | . 1 . . . . . . Mass Support 2 | . . . . . 2 . . Sight Range 1 | . . . . . . . 1 Sensor Range 6 | . . . . . . 2 4 Terrain Scan Density 3 | . . . . . . . 3 Ranged Accuracy 5 | 1 2 . . . . 2 . Hack Attack % 6 | . 3 . . . . 3 . Hack Defense % 3 | . . . . . . . 3 KI Resistance % 4 | 1 . . . 2 . . 1 TH Resistance % 2 | . . . . 2 . . . TH Damage % 3 | . . . . . . 3 . Protomatter Created 1264 | . 262 77 . 8 76 495 346 Integrity Restored 2623 | . 579 190 . 24 228 1062 540 Core 2474 | . 534 190 . 24 228 958 540 Parts 149 | . 45 . . . . 104 . Protomatter Decayed 413 | . 167 18 . . . 137 91 Game ------ Seed GuidedChromaticCalibrator Manual? 0 Play Time 01:21:37 Cumulative 17.1 hours Start 2024.05.12 @ 01:41:10 End 2024.05.12 @ 03:24:00 Sessions 1 Manual Loads 0 Difficulty Rogue Special Mode Winter2019/RPGLIKE Game No. 16 Rogue 16 Adventurer 0 Explorer 0 Win Type - Total 0 Types 0/0/0/0/0/0/0/0/0 Lore% 18 Gallery% 16 Achievement% 21 Wizard Run 0 Options --------- Layout 0 ASCII 0 Keyboard 0 Movement Mouse Keybinds 0 Fullscreen 2 Font 14/SmallcapsGlow Map View 36x27 Zoom Use 99% Tactical HUD 1 Map Filters NONE Filters NONE Steam 1 RUN: 28097517-787e-42fd-98ce-d611708def94